bitfinex-derivatives/quotes_SOLF0:USTF0_20250309
["timestamp","ask_amount","ask_price","bid_price","bid_amount"]
[1741529515679,0.05128195,133.14,133.12,0.05086569]
[1741529515872,34.93128195,133.14,133.12,0.05086569]
[1741529516375,7.5131,133.13,133.12,0.05086569]
[1741529517181,34.93128195,133.14,133.12,0.05086569]
[1741529517374,42.44378195,133.14,133.12,0.05086569]
[1741529517584,34.93128195,133.14,133.12,0.05086569]
[1741529518187,7.5128,133.13,133.12,0.05086569]
[1741529522579,7.516,133.08,133.05,3.969]
[1741529522987,7.516,133.08,133.05,2.0618]
[1741529523284,7.516,133.08,133.04,9.5341]
[1741529523684,0.04955478,133.07,133.05,0.05779633]
[1741529524589,42.3767,133.06,133.05,0.05779633]
[1741529525382,34.86,133.06,133.05,0.05779633]
[1741529526390,42.3767,133.06,133.05,0.05779633]
[1741529527784,34.86,133.06,133.05,0.05779633]
[1741529528183,0.04955478,133.07,133.05,0.05779633]
[1741529530689,0.04955478,133.07,133.05,7.57479633]
[1741529530992,0.04955478,133.07,133.05,0.05779633]
[1741529531794,0.04955478,133.07,133.05,7.57489633]
[1741529533591,0.04955478,133.07,133.06,7.5167]
[1741529533790,0.04955478,133.07,133.05,0.05779633]
[1741529534195,0.04955478,133.07,133.06,7.5167]
[1741529535096,34.86,133.1,133.08,7.5155]
[1741529535294,42.3535,133.12,133.08,7.5155]
[1741529535489,40.3079372,133.15,133.07,21.34483781]
[1741529535697,75.1479372,133.15,133.09,21.34483781]
[1741529535899,75.1479372,133.15,133.1,3.8328]
[1741529536091,0.05259286,133.13,133.11,7.57074593]
[1741529536694,0.05259286,133.13,133.12,7.5133]
[1741529537298,75.1479372,133.16,133.12,7.5133]
[1741529537592,40.3079372,133.16,133.11,0.05684593]
[1741529537797,7.512,133.15,133.11,0.05684593]
[1741529538097,40.3079372,133.16,133.11,0.05684593]
[1741529538598,40.3079372,133.16,133.11,7.57034593]
[1741529538996,40.3079372,133.16,133.11,0.05684593]
[1741529539298,61.65277501,133.16,133.11,0.05684593]
[1741529539498,40.3079372,133.16,133.11,0.05684593]
[1741529539895,7.5116,133.15,133.11,0.05684593]
[1741529541198,34.84,133.17,133.11,0.05684593]
[1741529541399,7.5128,133.13,133.11,0.05684593]
[1741529541697,21.34483781,133.16,133.11,0.05684593]
[1741529542595,7.5131,133.13,133.11,0.05684593]
[1741529543098,7.5127,133.14,133.11,0.05684593]
[1741529543893,7.512,133.15,133.11,0.05684593]
[1741529544090,21.34483781,133.16,133.11,0.05684593]
[1741529544599,7.5125,133.14,133.11,0.05684593]
[1741529545397,34.84,133.17,133.11,0.05684593]
[1741529545598,7.5118,133.15,133.11,7.57044593]
[1741529545798,34.84,133.17,133.11,0.05684593]
[1741529546403,7.5114,133.16,133.12,7.5133]
[1741529546899,34.84,133.17,133.11,0.05684593]
[1741529547099,7.512,133.15,133.11,7.57044593]
[1741529548001,40.3079372,133.19,133.12,21.34483781]
[1741529548202,34.8,133.18,133.1,21.34483781]
[1741529548499,7.5116,133.15,133.14,0.05433019]
[1741529548895,34.8,133.18,133.14,0.05433019]
[1741529549093,40.3079372,133.19,133.15,21.34483781]
[1741529549301,40.3079372,133.19,133.15,23.33143781]
[1741529549501,40.3079372,133.19,133.17,7.5102]
[1741529549703,137.41980436,133.21,133.15,23.33143781]
[1741529549704,16.49599274,133.21,133.15,23.33143781]
[1741529549900,40.3079372,133.22,133.17,0.04808681]
[1741529550498,40.3079372,133.22,133.19,21.34483781]
[1741529550699,40.3079372,133.22,133.2,1.9863]
[1741529551204,40.3079372,133.22,133.2,2.03385134]
[1741529552199,49.26731161,133.23,133.21,21.34483781]
[1741529552601,49.26731161,133.23,133.2,2.03385134]
[1741529552802,51.70751388,133.28,133.2,2.03385134]
[1741529553004,7.5076,133.23,133.2,1.9863]
[1741529553205,0.6231,133.27,133.23,0.05622624]
[1741529553399,0.6231,133.27,133.19,21.34483781]
[1741529553600,30.36267607,133.28,133.24,0.04989011]
[1741529553808,30.36267607,133.28,133.24,2.0241]
[1741529554111,30.36267607,133.28,133.25,0.05165428]
[1741529554607,7.5049,133.27,133.25,0.05165428]
[1741529555612,30.36267607,133.28,133.25,0.05165428]
[1741529555813,56.12483781,133.3,133.25,0.05165428]
[1741529556006,21.34483781,133.28,133.25,0.05165428]
[1741529556613,7.5054,133.26,133.25,0.05165428]
[1741529557003,42.2854,133.26,133.25,0.05165428]
[1741529557605,7.5075,133.23,133.18,246.72483781]
[1741529557812,34.78,133.26,133.18,246.72483781]
[1741529558612,56.12483781,133.26,133.18,225.38]
[1741529558912,0.05016672,133.23,133.21,0.04781024]
[1741529559117,56.10483781,133.22,133.14,23.32323781]
[1741529559308,7.511,133.17,133.14,23.32323781]
[1741529559509,56.10483781,133.22,133.14,23.32323781]
[1741529559714,21.34483781,133.2,133.12,246.60483781]
[1741529560216,0.05728636,133.17,133.15,0.0535154]
[1741529560510,7.5111,133.16,133.15,0.0535154]
[1741529560713,0.05728636,133.17,133.15,0.0535154]
[1741529561511,7.5111,133.16,133.15,0.0535154]
[1741529563715,0.05728636,133.17,133.15,0.0535154]
[1741529564217,34.76,133.21,133.16,21.34483781]
[1741529564416,34.76,133.21,133.16,23.22533781]
[1741529564918,7.5098,133.19,133.16,23.22533781]
[1741529565320,7.55197816,133.19,133.16,23.28276236]
[1741529565618,0.04217816,133.19,133.16,23.28276236]
[1741529565922,34.76,133.24,133.18,21.34483781]
[1741529566420,21.34483781,133.27,133.2,21.34483781]
[1741529566421,34.76,133.27,133.2,21.34483781]
[1741529566818,7.506,133.25,133.2,21.34483781]
[1741529567122,34.76,133.27,133.21,0.05184545]
[1741529567621,7.5077,133.22,133.21,0.05184545]
[1741529568823,36.0677855,133.29,133.21,0.05184545]
[1741529569018,34.74,133.28,133.17,34.1070855]
[1741529569325,34.74,133.28,133.17,96.1070855]
[1741529569525,34.74,133.28,133.21,0.04773806]
[1741529569921,7.5076,133.23,133.21,0.04773806]
[1741529570124,34.74,133.24,133.21,0.04773806]
[1741529571123,7.5071,133.23,133.21,0.04773806]
[1741529571419,34.74,133.24,133.21,0.04773806]
[1741529572123,7.5077,133.22,133.21,0.04773806]
[1741529572831,7.5089,133.2,133.16,1.8805]
[1741529573723,7.5084,133.21,133.16,1.8805]
[1741529573929,0.04773806,133.2,133.17,0.04773038]
[1741529574123,0.04773806,133.2,133.17,7.55793038]
[1741529574624,0.04773806,133.2,133.17,0.04773038]
[1741529574823,0.04773806,133.2,133.17,7.55783038]
[1741529575023,0.04773806,133.2,133.17,0.04773038]
[1741529576526,0.04773806,133.2,133.18,7.5096]
[1741529577224,1.8908,133.27,133.19,34.1070855]
[1741529577722,34.72,133.26,133.19,34.1070855]
[1741529577928,34.72,133.26,133.2,227.1893]
[1741529578130,34.72,133.26,133.2,229.1871]
[1741529578631,2.3669,133.3,133.2,229.1871]
[1741529578632,2.3669,133.3,133.22,0.05027847]
[1741529578831,34.72,133.29,133.2,229.1871]
[1741529579028,0.1013,133.33,133.25,0.04845375]
[1741529579229,34.72,133.32,133.22,34.1070855]
[1741529579425,34.72,133.32,133.28,0.05314653]
[1741529580133,7.5027,133.31,133.28,0.05314653]
[1741529580333,34.72,133.32,133.28,0.05314653]
[1741529583128,34.72,133.32,133.23,7.5069]
[1741529583328,34.72,133.32,133.22,34.1070855]
[1741529583932,34.72,133.32,133.2,229.1871]
[1741529584436,34.72,133.32,133.25,0.05310746]
[1741529584437,0.05314653,133.27,133.25,0.05310746]
[1741529584735,0.05197765,133.27,133.25,0.05310746]
[1741529585035,7.55717765,133.27,133.25,0.05310746]
[1741529585236,0.05197765,133.27,133.25,0.05310746]
[1741529585736,7.5054,133.26,133.25,0.05310746]
[1741529587536,7.5078,133.22,133.2,227.1893]
[1741529587732,7.5078,133.22,133.2,225.26]
[1741529587932,34.7,133.24,133.17,2.069]
[1741529588634,7.5073,133.23,133.18,21.31320529]
[1741529588834,0.04753809,133.22,133.19,0.05185499]
[1741529589336,7.55563809,133.22,133.19,0.05185499]
[1741529589734,0.04753809,133.22,133.19,0.05185499]
[1741529592138,7.5086,133.21,133.19,0.05185499]
[1741529592337,0.04753809,133.22,133.19,0.05185499]
[1741529592737,7.5088,133.2,133.19,0.05185499]
[1741529592938,42.1888,133.2,133.19,0.05185499]
[1741529593732,7.5088,133.2,133.19,0.05185499]
[1741529593935,0.04753809,133.22,133.19,21.36506028]
[1741529594133,0.04753809,133.22,133.21,21.31320529]
[1741529594335,42.1853,133.27,133.21,21.31320529]
[1741529594538,42.1853,133.27,133.22,7.5073]
[1741529594839,42.1853,133.27,133.21,21.31320529]
[1741529595046,34.68,133.27,133.23,28.81990529]
[1741529595434,0.04894045,133.26,133.24,0.05541816]
[1741529597730,0.04894045,133.26,133.24,7.56181816]
[1741529598038,37.49904716,133.35,133.25,21.31320529]
[1741529598239,36.7278,133.34,133.25,21.31320529]
[1741529599036,7.5037,133.29,133.25,28.81900529]
[1741529599245,36.7278,133.34,133.28,0.04966808]
[1741529600044,7.5024,133.32,133.28,0.04966808]
[1741529600435,36.7278,133.34,133.28,0.04966808]
[1741529600639,7.5033,133.3,133.28,0.04966808]
[1741529601145,7.5037,133.29,133.28,0.04966808]
[1741529601446,21.31320529,133.33,133.28,0.04966808]
[1741529602046,2.0678,133.34,133.28,0.04966808]
[1741529602247,34.66,133.33,133.28,0.04966808]
[1741529602647,7.5037,133.3,133.28,0.04966808]
[1741529602950,34.66,133.3,133.28,0.04966808]
[1741529603245,7.5037,133.29,133.28,0.04966808]
[1741529606743,34.66,133.3,133.28,0.04966808]
[1741529606943,42.1633,133.3,133.28,0.04966808]
[1741529607244,34.66,133.3,133.28,0.04966808]
[1741529607445,42.1635,133.3,133.28,0.04966808]
[1741529607649,7.5035,133.3,133.28,0.04966808]
[1741529607851,7.5023,133.32,133.28,0.04966808]
[1741529608055,34.64,133.33,133.28,0.04966808]
[1741529608253,2.0678,133.34,133.28,0.04966808]
[1741529608449,34.64,133.33,133.28,0.04966808]
[1741529608645,21.31320529,133.36,133.27,21.31320529]
[1741529608853,34.64,133.35,133.29,0.05513701]
[1741529609362,7.5022,133.32,133.29,0.05513701]
[1741529609551,34.64,133.35,133.29,0.05513701]
[1741529610656,7.5024,133.32,133.29,0.05513701]
[1741529611355,30.35035596,133.38,133.29,21.3683423]
[1741529611556,30.35035596,133.38,133.31,21.31320529]
[1741529611760,21.31320529,133.37,133.32,0.04822942]
[1741529611954,7.5013,133.34,133.32,0.04822942]
[1741529612154,34.62,133.34,133.32,0.04822942]
[1741529612560,7.5015,133.33,133.32,0.04822942]
[1741529613258,42.1211,133.34,133.32,0.04822942]
[1741529613453,21.31320529,133.39,133.32,0.04822942]
[1741529613659,34.62,133.38,133.32,0.04822942]
[1741529614360,23.26990529,133.4,133.32,0.04822942]
[1741529614361,34.62,133.37,133.32,0.04822942]
[1741529615559,34.62,133.37,133.32,7.55022942]
[1741529615757,1.9567,133.4,133.32,21.36143471]
[1741529616055,34.6,133.4,133.35,7.5001]
[1741529616260,34.6,133.4,133.34,21.31320529]
[1741529616459,7.4984,133.39,133.36,0.05022418]
[1741529616656,34.6,133.4,133.36,0.05022418]
[1741529616964,7.499,133.38,133.36,0.05022418]
[1741529617158,34.6,133.4,133.36,0.05022418]
[1741529618156,7.4992,133.37,133.36,0.05022418]
[1741529622163,21.31320529,133.39,133.31,1.9361]
[1741529622650,34.6,133.4,133.3,225.12]
[1741529622651,21.31320529,133.37,133.3,225.12]
[1741529622850,21.31320529,133.35,133.3,225.12]
[1741529623060,21.31320529,133.35,133.27,1.9411]
[1741529623362,0.05166079,133.34,133.31,0.05047655]
[1741529623758,7.5021,133.32,133.31,0.05047655]
[1741529624059,42.0821,133.32,133.31,0.05047655]
[1741529625655,7.5043,133.28,133.24,246.37320529]
[1741529626863,7.55849091,133.28,133.25,2.11747727]
[1741529627257,0.05419091,133.28,133.25,2.11747727]
[1741529627866,7.55879091,133.28,133.25,2.11747727]
[1741529628261,0.05419091,133.28,133.25,9.62297727]
[1741529628461,0.05419091,133.28,133.25,2.11747727]
[1741529628661,34.58,133.32,133.26,21.31320529]
[1741529628863,34.58,133.32,133.25,2.0693]
[1741529629062,7.5042,133.29,133.25,2.0693]
[1741529629460,34.58,133.32,133.24,225.06]
[1741529629660,0.05074949,133.29,133.27,0.05180132]
[1741529629865,34.56,133.28,133.27,0.05180132]
[1741529630063,42.0643,133.28,133.27,1.32e-06]
[1741529630266,34.56,133.28,133.18,250.28700529]
[1741529630465,21.31320529,133.27,133.18,250.28700529]
[1741529630666,7.5083,133.21,133.18,228.9738]
[1741529631468,0.0553409,133.21,133.18,229.02160867]
[1741529631670,0.0553409,133.21,133.18,225.12780867]
[1741529632065,7.5094,133.2,133.18,225.12780867]
[1741529632466,0.0553409,133.21,133.18,0.04780867]
[1741529633061,7.5094,133.19,133.18,0.04780867]
[1741529633267,34.56,133.19,133.13,2.0116]
[1741529633766,7.5107,133.17,133.13,2.0116]
[1741529633965,34.56,133.19,133.13,2.0116]
[1741529634366,0.051624,133.17,133.15,0.05536946]
[1741529641365,7.5111,133.16,133.15,0.05536946]
[1741529642077,0.051624,133.17,133.15,0.05536946]
[1741529642876,0.051624,133.17,133.15,21.36857475]
[1741529643079,34.56,133.21,133.15,21.36857475]
[1741529643277,34.56,133.21,133.16,1.9618]
[1741529643675,42.0683,133.21,133.17,7.5101]
[1741529643872,34.56,133.21,133.16,1.9618]
[1741529644278,0.05729613,133.2,133.17,0.05387398]
[1741529644475,0.05729613,133.2,133.17,21.31320529]
[1741529644671,0.05729613,133.2,133.17,21.36860159]
[1741529645382,0.05729613,133.2,133.19,7.5094]
[1741529645775,0.05729613,133.2,133.17,23.25390159]
[1741529646180,0.05729613,133.2,133.17,1.9406963]
[1741529646379,0.05729613,133.2,133.17,0.0553963]
[1741529647575,34.59729613,133.2,133.17,0.0553963]
[1741529647878,21.31320529,133.19,133.1,225.28]
[1741529648376,34.54,133.2,133.13,21.31320529]
[1741529648971,42.0492,133.2,133.15,7.5116]
[1741529649175,0.05652715,133.18,133.15,7.56437589]
[1741529649979,0.05652715,133.18,133.15,0.05277589]
[1741529650378,0.05652715,133.18,133.15,7.56437589]
[1741529650580,0.05652715,133.18,133.15,0.05277589]
[1741529651281,0.05652715,133.18,133.16,7.5111]
[1741529651682,0.05652715,133.18,133.15,0.05277589]
[1741529651879,0.05652715,133.18,133.15,7.56407589]
[1741529652083,0.05652715,133.18,133.15,0.05277589]
[1741529652980,0.05652715,133.18,133.15,7.56407589]
[1741529653175,0.05652715,133.18,133.15,0.05277589]
[1741529653382,23.35090529,133.27,133.17,21.31320529]
[1741529653572,34.54,133.26,133.21,7.5079]
[1741529653883,7.5062,133.25,133.21,21.31320529]
[1741529654279,23.24900529,133.31,133.21,21.31320529]
[1741529654480,0.05068852,133.24,133.23,21.31320529]
[1741529654685,1.9358,133.31,133.23,21.31320529]
[1741529654882,42.0434,133.3,133.23,21.31320529]
[1741529655073,34.54,133.3,133.25,21.31320529]
[1741529655278,17.6297742,133.32,133.25,21.31320529]
[1741529655679,10.1272742,133.32,133.25,21.31320529]
[1741529655984,0.04857966,133.3,133.27,0.05006434]
[1741529656985,34.52,133.29,133.21,1.9704]
[1741529657585,7.505,133.27,133.21,1.9704]
[1741529657781,34.52,133.29,133.21,1.9704]
[1741529658080,7.5054,133.27,133.24,0.05455114]
[1741529658286,0.05736863,133.26,133.24,0.05455114]
[1741529658484,34.52,133.25,133.24,0.05455114]
[1741529658680,0.05736863,133.26,133.24,0.05455114]
[1741529659279,7.506,133.25,133.24,0.05455114]
[1741529659986,0.05736863,133.26,133.24,0.05455114]
[1741529660686,34.5,133.3,133.24,0.05455114]
[1741529660876,34.5,133.3,133.24,2.04635114]
[1741529661277,34.5,133.33,133.24,36.54635114]
[1741529661477,34.5,133.33,133.24,36.4918]
[1741529661682,7.5036,133.3,133.25,7.5058]
[1741529661877,7.5487476,133.3,133.27,0.05009767]
[1741529662090,0.0451476,133.3,133.27,0.05009767]
[1741529662278,0.0451476,133.3,133.28,7.5039]
[1741529662479,0.0451476,133.3,133.27,0.05009767]
[1741529662994,0.0451476,133.3,133.27,7.55459767]
[1741529663290,0.0451476,133.3,133.27,0.05009767]
[1741529663492,0.0451476,133.3,133.28,7.5042]
[1741529663786,0.0451476,133.3,133.27,0.05009767]
[1741529663987,7.5037,133.29,133.27,0.05009767]
[1741529664191,34.5451476,133.3,133.27,0.05009767]
[1741529664789,7.5043,133.28,133.27,0.05009767]
[1741529665381,34.5451476,133.3,133.27,0.05009767]
[1741529665990,7.5043,133.28,133.27,0.05009767]
[1741529667085,34.05492885,133.29,133.22,1.9736]
[1741529667285,35.97202885,133.29,133.2,225.18]
[1741529667493,34.05492885,133.26,133.2,225.18]
[1741529667692,34.48,133.25,133.2,225.18]
[1741529668089,7.5052,133.27,133.2,225.18]
[1741529668287,0.05647071,133.24,133.21,0.05230902]
[1741529669794,0.05647071,133.24,133.21,7.56020902]
[1741529670392,0.05647071,133.24,133.21,0.05230902]
[1741529671491,7.56317071,133.24,133.21,0.05230902]
[1741529672791,0.05647071,133.24,133.21,0.05230902]
[1741529672991,0.05647071,133.24,133.22,7.5072]
[1741529673696,0.05647071,133.24,133.23,7.5071]
[1741529673891,193.0,133.37,133.23,34.46]
[1741529674096,34.46,133.34,133.25,34.05492885]
[1741529674297,34.46,133.34,133.26,2.0132]
[1741529674995,0.03877456,133.31,133.29,0.0505159]
[1741529675390,0.03877456,133.31,133.29,7.5539159]
[1741529675700,0.03877456,133.31,133.29,0.0505159]
[1741529676690,7.54157456,133.31,133.29,0.0505159]
[1741529676884,0.03877456,133.31,133.29,0.0505159]
[1741529677086,34.46,133.36,133.29,0.0505159]
[1741529677289,7.5013,133.34,133.29,0.0505159]
[1741529677698,34.46,133.36,133.29,0.0505159]
[1741529678196,7.5019,133.33,133.29,0.0505159]
[1741529678397,34.46,133.36,133.29,0.0505159]
[1741529678797,7.5023,133.32,133.29,0.0505159]
[1741529678994,34.46,133.36,133.29,0.0505159]
[1741529679297,34.05492885,133.35,133.29,0.0505159]
[1741529679594,34.05492885,133.32,133.29,0.0505159]
[1741529679799,7.5032,133.3,133.29,0.0505159]
[1741529679999,34.44,133.31,133.22,1.9259]
[1741529680893,7.5061,133.25,133.22,1.9259]
[1741529681093,34.44,133.27,133.25,0.05307073]
[1741529681388,34.4905159,133.27,133.25,0.05280538]
[1741529683190,0.0505159,133.27,133.25,0.05280538]
[1741529684700,0.0505159,133.27,133.25,7.55860538]
[1741529685001,0.0505159,133.27,133.25,0.05280538]
[1741529687599,0.0505159,133.27,133.26,7.5054]
[1741529688806,7.5032,133.3,133.26,7.5054]
[1741529689005,34.42,133.32,133.26,1.9076]
[1741529689604,7.5047,133.28,133.26,1.9076]
[1741529689805,34.42,133.32,133.26,1.9076]
[1741529690001,34.42,133.32,133.26,0.05273547]
[1741529690504,3.8375,133.31,133.26,0.05273547]
[1741529691104,34.05492885,133.3,133.26,0.05273547]
[1741529691610,7.5049,133.27,133.26,0.05273547]
[1741529691810,41.9049,133.27,133.26,0.05273547]
[1741529692107,34.4,133.27,133.21,225.12]
[1741529693411,0.04909653,133.25,133.23,0.0567867]
[1741529695208,0.04909653,133.25,133.23,7.5636867]
[1741529695612,0.04909653,133.25,133.23,0.0567867]
[1741529698411,0.04909653,133.25,133.23,9.4647867]
[1741529698811,0.04909653,133.25,133.23,1.9579867]
[1741529700924,0.04909653,133.25,133.24,7.5066]
[1741529701423,0.04909653,133.25,133.23,9.4648867]
[1741529701630,0.04909653,133.25,133.23,1.9579867]
[1741529702732,0.04909653,133.25,133.24,7.5066]
[1741529703126,34.38,133.3,133.23,23.25456344]
[1741529703326,41.8837,133.3,133.25,7.5059]
[1741529703629,41.8837,133.3,133.23,23.19777674]
[1741529704134,7.5037,133.3,133.26,7.5053]
[1741529704732,34.38,133.31,133.27,7.5048]
[1741529705030,7.5037,133.3,133.26,7.5051]
[1741529705228,7.5037,133.3,133.28,0.05556309]
[1741529706233,34.38,133.31,133.28,0.05556309]
[1741529706826,41.8831,133.31,133.28,0.05556309]
[1741529707229,7.5031,133.31,133.28,0.05556309]
[1741529707633,34.36,133.33,133.28,0.05556309]
[1741529707932,7.503,133.31,133.28,0.05556309]
[1741529709034,7.5022,133.32,133.28,0.05556309]
[1741529710033,7.5022,133.32,133.28,7.55986309]
[1741529710229,203.30792383,133.37,133.29,246.43657674]
[1741529710428,203.30792383,133.37,133.29,248.47007674]
[1741529710429,237.66792383,133.37,133.29,248.47007674]
[1741529710627,237.66792383,133.37,133.32,0.05748904]
[1741529711327,7.5005,133.35,133.32,0.05748904]
[1741529712427,34.34,133.37,133.32,0.05748904]
[1741529712631,7.5009,133.34,133.32,0.05748904]
[1741529712827,34.34,133.37,133.32,0.05748904]
[1741529713032,61.7742069,133.39,133.33,21.29657674]
[1741529713033,40.47763016,133.39,133.33,21.29657674]
[1741529713238,40.47763016,133.39,133.35,21.29657674]
[1741529713632,40.47763016,133.39,133.36,0.04799089]
[1741529713942,74.81763016,133.39,133.36,0.04799089]
[1741529714143,7.4992,133.37,133.36,0.04799089]
[1741529714438,74.81763016,133.39,133.36,0.04799089]
[1741529715037,199.6968897,133.42,133.36,0.04799089]
[1741529715038,34.34,133.42,133.36,0.04799089]
[1741529716035,34.34,133.42,133.36,21.34456763]
[1741529716438,7.498,133.4,133.36,0.04799089]
[1741529716637,34.34,133.42,133.36,0.04799089]
[1741529716844,7.4974,133.41,133.36,0.04799089]
[1741529717542,44.4672742,133.44,133.36,0.04799089]
[1741529717543,21.29657674,133.43,133.36,0.04799089]
[1741529718042,44.4672742,133.44,133.37,21.29657674]
[1741529718244,34.34,133.44,133.37,21.29657674]
[1741529718439,7.4962,133.43,133.39,7.54576896]
[1741529718640,34.34,133.44,133.39,0.04816896]
[1741529719338,7.4961,133.43,133.39,0.04816896]
[1741529719547,34.34,133.44,133.39,0.04816896]
[1741529720548,4.0221,133.45,133.39,0.04816896]
[1741529720846,7.4955,133.44,133.4,7.4972]
[1741529721143,4.0221,133.45,133.39,0.04816896]
[1741529721350,4.0221,133.45,133.39,7.54586896]
[1741529721351,7.4959,133.43,133.39,7.54586896]
[1741529721650,4.0221,133.45,133.39,0.04816896]
[1741529721850,7.4956,133.44,133.4,7.4974]
[1741529722751,7.4967,133.42,133.39,0.04816896]
[1741529722948,21.29657674,133.46,133.39,0.04816896]
[1741529723249,55.59657674,133.46,133.39,0.04816896]
[1741529723450,55.59657674,133.46,133.4,7.4974]
[1741529723652,55.59657674,133.46,133.39,0.04816896]
[1741529723840,7.4957,133.44,133.39,7.54606896]
[1741529724148,55.59657674,133.46,133.39,7.54606896]
[1741529724447,7.4956,133.44,133.39,7.54606896]
[1741529724647,7.4956,133.44,133.39,0.04816896]
[1741529724848,55.59657674,133.46,133.39,0.04816896]
[1741529725248,7.4958,133.44,133.39,0.04816896]
[1741529725445,55.59657674,133.46,133.39,0.04816896]
[1741529725657,41.7946,133.46,133.39,21.3447457]
[1741529725948,3.8868,133.47,133.39,55.6447457]
[1741529726355,7.4955,133.44,133.39,55.6447457]
[1741529726551,7.4955,133.44,133.4,7.4973]
[1741529726849,7.4952,133.45,133.4,7.4973]
[1741529727154,38.1668,133.47,133.41,0.0506561]
[1741529727350,7.4956,133.44,133.41,0.0506561]
[1741529728249,7.4949,133.45,133.41,7.5472561]
[1741529728750,21.29657674,133.5,133.41,0.0506561]
[1741529728950,7.4939,133.47,133.4,21.29657674]
[1741529729155,34.28,133.49,133.44,0.04997375]
[1741529729348,7.4941,133.47,133.44,0.04997375]
[1741529729656,34.28,133.49,133.44,0.04997375]
[1741529730148,1.889,133.51,133.44,0.04997375]
[1741529730149,21.29657674,133.52,133.44,21.34655049]
[1741529730359,34.28,133.52,133.44,21.29657674]
[1741529730654,34.28,133.52,133.47,0.05478173]
[1741529731050,7.4919,133.5,133.47,7.54798173]
[1741529731250,34.26,133.53,133.47,0.05478173]
[1741529731859,23.67907674,133.54,133.47,0.05478173]
[1741529732051,34.26,133.53,133.47,0.05478173]
[1741529732252,7.4917,133.51,133.47,0.05478173]
[1741529732453,34.26,133.53,133.48,7.493]
[1741529732753,7.4911,133.52,133.47,0.05478173]
[1741529732959,7.4911,133.52,133.47,7.54828173]
[1741529733157,7.4911,133.52,133.47,0.05478173]
[1741529733347,41.7505,133.53,133.47,0.05478173]
[1741529733548,34.26,133.53,133.47,0.05478173]
[1741529734158,7.4912,133.52,133.47,0.05478173]
[1741529734358,34.26,133.53,133.47,0.05478173]
[1741529734859,21.29657674,133.52,133.47,0.05478173]
[1741529735760,7.4925,133.49,133.47,0.05478173]
[1741529736464,21.29657674,133.52,133.47,0.05478173]
[1741529739661,34.6523,133.53,133.47,0.05478173]
[1741529739862,55.94887674,133.53,133.47,0.05478173]
[1741529740867,7.4931,133.48,133.47,0.05478173]
[1741529742470,36.2062,133.54,133.47,0.05478173]
[1741529743468,7.4914,133.51,133.47,7.54808173]
[1741529743667,36.2062,133.54,133.47,0.05478173]
[1741529744675,7.4912,133.52,133.47,0.05478173]
[1741529745168,7.4912,133.52,133.48,7.4928]
[1741529745573,7.4922,133.5,133.47,0.05478173]
[1741529745974,7.4909,133.52,133.47,0.05478173]
[1741529746172,1.9862,133.54,133.47,0.05478173]
[1741529746371,36.1862,133.54,133.47,7.54818173]
[1741529746571,7.4914,133.51,133.47,0.05478173]
[1741529746967,57.48277674,133.54,133.47,0.05478173]
[1741529747176,36.1862,133.54,133.47,0.05478173]
[1741529747375,1.9862,133.54,133.5,7.4919]
[1741529747573,7.4877,133.58,133.5,21.29657674]
[1741529747775,7.4877,133.58,133.52,21.29657674]
[1741529747973,7.4877,133.58,133.54,7.4897]
[1741529748479,7.4877,133.58,133.52,21.29657674]
[1741529748480,34.2,133.61,133.55,0.05076122]
[1741529748679,21.29657674,133.6,133.55,0.05076122]
[1741529749178,7.4886,133.56,133.55,0.05076122]
[1741529750775,34.25297908,133.57,133.48,34.2]
[1741529750981,2.056,133.55,133.45,261.1509]
[1741529751181,7.4929,133.49,133.45,226.9509]
[1741529751476,55.47657674,133.52,133.45,226.9509]
[1741529751778,55.47657674,133.52,133.47,0.048126]
[1741529751779,7.4926,133.49,133.47,0.048126]
[1741529752077,0.05297908,133.5,133.47,0.048126]
[1741529752383,0.05297908,133.5,133.48,21.29657674]
[1741529752577,0.05297908,133.5,133.49,7.4925]
[1741529753578,0.05297908,133.5,133.48,21.29657674]
[1741529754180,0.05297908,133.5,133.48,28.78927674]
[1741529755273,0.05297908,133.5,133.49,7.4925]
[1741529755879,0.05297908,133.5,133.47,0.048126]
[1741529756282,0.05297908,133.5,133.47,7.541526]
[1741529756479,0.05297908,133.5,133.47,0.048126]
[1741529756880,0.05297908,133.5,133.47,7.541526]